[Event "*** Titled Tuesday Blitz"]
[Site "Chess.com"]
[Date "2019.03.05"]
[Round "9"]
[White "WPWPWP-2015"]
[Black "FearNoEvil12"]
[Result "1/2-1/2"]
[WhiteElo "2378"]
[BlackElo "1958"]
[TimeControl "180+2"]
[EndTime "15:15:21 PST"]
[Termination "Game drawn by repetition"]

1. e4 {[%clk 0:03:01.9]} 1... a6 {[%clk 0:02:59.7]} 2. d4 {[%clk 0:03:01.9]}
2... b5 {[%clk 0:03:01.1]} 3. a4 {[%clk 0:03:01.8]} 3... b4 {[%clk 0:03:00.7]}
4. f4 {[%clk 0:03:01.2]} 4... Bb7 {[%clk 0:03:01.7]} 5. Bd3 {[%clk 0:03:01.7]}
5... e6 {[%clk 0:03:03.1]} 6. Nf3 {[%clk 0:03:02.2]} 6... Nf6 {[%clk 0:03:04.5]}
7. Qe2 {[%clk 0:03:02.8]} 7... c5 {[%clk 0:03:05.4]} 8. c3 {[%clk 0:03:00.7]}
8... Qb6 {[%clk 0:03:03.3]} 9. a5 {[%clk 0:03:00.5]} 9... Qa7 {[%clk 0:03:02.7]}
10. Be3 {[%clk 0:03:00.3]} 10... Nxe4 {[%clk 0:02:57]} 11. O-O {[%clk
0:02:49.3]} 11... bxc3 {[%clk 0:02:51.4]} 12. bxc3 {[%clk 0:02:48.7]} 12... Nc6
{[%clk 0:02:49.1]} 13. Bxe4 {[%clk 0:02:47]} 13... cxd4 {[%clk 0:02:49]} 14.
Nxd4 {[%clk 0:02:45.2]} 14... Nxd4 {[%clk 0:02:48.4]} 15. Bxd4 {[%clk
0:02:46.1]} 15... Bc5 {[%clk 0:02:45.3]} 16. Nd2 {[%clk 0:02:38.5]} 16... Bxd4+
{[%clk 0:02:42.8]} 17. cxd4 {[%clk 0:02:38.7]} 17... Qxd4+ {[%clk 0:02:44.2]}
18. Kh1 {[%clk 0:02:39.1]} 18... Bxe4 {[%clk 0:02:44.7]} 19. Nxe4 {[%clk
0:02:39]} 19... O-O {[%clk 0:02:44.4]} 20. f5 {[%clk 0:02:38.7]} 20... exf5
{[%clk 0:02:42.3]} 21. Ng3 {[%clk 0:02:39.2]} 21... g6 {[%clk 0:02:36.1]} 22.
Rad1 {[%clk 0:02:38.2]} 22... Qb4 {[%clk 0:02:34.1]} 23. Qd2 {[%clk 0:02:36.4]}
23... Qxd2 {[%clk 0:02:25.3]} 24. Rxd2 {[%clk 0:02:37.1]} 24... Rab8 {[%clk
0:02:25.7]} 25. Rd6 {[%clk 0:02:35.8]} 25... Rb5 {[%clk 0:02:19.8]} 26. Rxa6
{[%clk 0:02:36.2]} 26... Re8 {[%clk 0:02:20.4]} 27. h3 {[%clk 0:02:31.8]} 27...
Ree5 {[%clk 0:02:16.8]} 28. Rd6 {[%clk 0:02:30.3]} 28... Rxa5 {[%clk 0:02:15.6]}
29. Rxd7 {[%clk 0:02:31.6]} 29... Kg7 {[%clk 0:02:16.1]} 30. Kh2 {[%clk
0:02:31.7]} 30... h5 {[%clk 0:02:13.8]} 31. Rf2 {[%clk 0:02:28.8]} 31... h4
{[%clk 0:02:12]} 32. Nf1 {[%clk 0:02:29.9]} 32... Ra1 {[%clk 0:02:09.6]} 33. Nd2
{[%clk 0:02:27.7]} 33... Ree1 {[%clk 0:02:09.2]} 34. g4 {[%clk 0:02:20]} 34...
Rh1+ {[%clk 0:01:47.4]} 35. Kg2 {[%clk 0:02:20.2]} 35... Rag1+ {[%clk
0:01:48.3]} 36. Kf3 {[%clk 0:02:21.4]} 36... Rxh3+ {[%clk 0:01:49.6]} 37. Ke2
{[%clk 0:02:22.3]} 37... Rxg4 {[%clk 0:01:47]} 38. Nf3 {[%clk 0:02:21.7]} 38...
Rhg3 {[%clk 0:01:26.6]} 39. Rd1 {[%clk 0:01:40]} 39... g5 {[%clk 0:01:18.1]} 40.
Rh1 {[%clk 0:01:39.9]} 40... f6 {[%clk 0:01:11]} 41. Kf1 {[%clk 0:01:39.1]}
41... Kg6 {[%clk 0:01:08.7]} 42. Ne1 {[%clk 0:01:28.7]} 42... f4 {[%clk
0:00:55.1]} 43. Nf3 {[%clk 0:01:25.9]} 43... Rxf3 {[%clk 0:00:36.6]} 44. Rxf3
{[%clk 0:01:25.6]} 44... Rg3 {[%clk 0:00:38.1]} 45. Rf2 {[%clk 0:01:22.5]} 45...
f5 {[%clk 0:00:38]} 46. Re2 {[%clk 0:01:16.9]} 46... Kh5 {[%clk 0:00:37.8]} 47.
Kf2 {[%clk 0:00:55]} 47... g4 {[%clk 0:00:32.4]} 48. Re8 {[%clk 0:00:48.2]}
48... Rf3+ {[%clk 0:00:18.4]} 49. Ke2 {[%clk 0:00:45.8]} 49... h3 {[%clk
0:00:15.9]} 50. Ra1 {[%clk 0:00:36.2]} 50... Kh4 {[%clk 0:00:15.6]} 51. Rg1
{[%clk 0:00:33.3]} 51... Re3+ {[%clk 0:00:07.3]} 52. Rxe3 {[%clk 0:00:32.2]}
52... fxe3 {[%clk 0:00:08.5]} 53. Kxe3 {[%clk 0:00:20.5]} 53... h2 {[%clk
0:00:09.2]} 54. Ra1 {[%clk 0:00:03.7]} 54... Kg3 {[%clk 0:00:10.3]} 55. Kd4
{[%clk 0:00:03.3]} 55... f4 {[%clk 0:00:10.8]} 56. Ke4 {[%clk 0:00:03.5]} 56...
f3 {[%clk 0:00:11.6]} 57. Ke3 {[%clk 0:00:04.8]} 57... Kg2 {[%clk 0:00:11.8]}
58. Ra2+ {[%clk 0:00:05.8]} 58... Kg3 {[%clk 0:00:09.7]} 59. Ra1 {[%clk
0:00:06.3]} 59... Kg2 {[%clk 0:00:05.9]} 60. Ra2+ {[%clk 0:00:07.4]} 60... Kg3
{[%clk 0:00:06.8]} 61. Ra1 {[%clk 0:00:08.4]} 61... Kg2 {[%clk 0:00:02.9]} 62.
Ra2+ {[%clk 0:00:09.3]} 62... Kg3 {[%clk 0:00:04.1]} 63. Ra1 {[%clk 0:00:10.2]}
63... Kg2 {[%clk 0:00:05.4]} 64. Ra2+ {[%clk 0:00:08.1]} 64... Kg3 {[%clk
0:00:06.9]} 65. Ra1 {[%clk 0:00:07.3]} 1/2-1/2

[Event "*** Titled Tuesday Blitz"]
[Site "Chess.com"]
[Date "2019.03.05"]
[Round "9"]
[White "wonderfultime"]
[Black "wenx95"]
[Result "1/2-1/2"]
[WhiteElo "2903"]
[BlackElo "2533"]
[TimeControl "180+2"]
[EndTime "15:15:28 PST"]
[Termination "Game drawn by repetition"]

1. d4 {[%clk 0:03:01.9]} 1... Nf6 {[%clk 0:03:00.3]} 2. Nf3 {[%clk 0:03:02.4]}
2... e6 {[%clk 0:03:01.2]} 3. Bf4 {[%clk 0:03:03.3]} 3... b6 {[%clk 0:03:01.7]}
4. e3 {[%clk 0:03:04.2]} 4... Be7 {[%clk 0:03:02.3]} 5. h3 {[%clk 0:03:05.1]}
5... O-O {[%clk 0:03:02.8]} 6. Bd3 {[%clk 0:03:06.4]} 6... c5 {[%clk 0:03:03.6]}
7. O-O {[%clk 0:03:07.1]} 7... Ba6 {[%clk 0:03:04.8]} 8. c3 {[%clk 0:02:59.3]}
8... Bxd3 {[%clk 0:02:57.3]} 9. Qxd3 {[%clk 0:03:01.2]} 9... d5 {[%clk
0:02:58.8]} 10. Nbd2 {[%clk 0:02:58.1]} 10... Nc6 {[%clk 0:02:43.9]} 11. Rfd1
{[%clk 0:02:59.2]} 11... cxd4 {[%clk 0:02:44.1]} 12. exd4 {[%clk 0:02:56.8]}
12... h6 {[%clk 0:02:33.7]} 13. Re1 {[%clk 0:02:55.7]} 13... a6 {[%clk 0:02:28]}
14. a4 {[%clk 0:02:46.3]} 14... Qd7 {[%clk 0:02:08.5]} 15. Ne5 {[%clk
0:02:31.4]} 15... Nxe5 {[%clk 0:02:05.8]} 16. dxe5 {[%clk 0:02:33.3]} 16... Nh7
{[%clk 0:02:02.3]} 17. Nf3 {[%clk 0:02:13.4]} 17... Rfc8 {[%clk 0:01:58.9]} 18.
Red1 {[%clk 0:01:58.6]} 18... Qe8 {[%clk 0:01:49.4]} 19. Be3 {[%clk 0:01:55.6]}
19... Bc5 {[%clk 0:01:37.6]} 20. Qe2 {[%clk 0:01:42]} 20... Nf8 {[%clk
0:01:29.8]} 21. Bd4 {[%clk 0:01:36.4]} 21... Ng6 {[%clk 0:01:22.6]} 22. Qe3
{[%clk 0:01:37.2]} 22... Ne7 {[%clk 0:01:22.9]} 23. g4 {[%clk 0:01:33.4]} 23...
Bxd4 {[%clk 0:01:22.7]} 24. Rxd4 {[%clk 0:01:34.2]} 24... b5 {[%clk 0:01:18.5]}
25. Qd3 {[%clk 0:01:17]} 25... Rc4 {[%clk 0:00:34.9]} 26. b3 {[%clk 0:00:54.6]}
26... Rc5 {[%clk 0:00:28]} 27. b4 {[%clk 0:00:37.6]} 27... Rc4 {[%clk
0:00:26.9]} 28. Kg2 {[%clk 0:00:15.9]} 28... Nc6 {[%clk 0:00:21.6]} 29. Rxc4
{[%clk 0:00:16.2]} 29... bxc4 {[%clk 0:00:22]} 30. Qe3 {[%clk 0:00:16.8]} 30...
Qd7 {[%clk 0:00:17.4]} 31. Rd1 {[%clk 0:00:13.9]} 31... Ne7 {[%clk 0:00:17.6]}
32. a5 {[%clk 0:00:14.4]} 32... Qa4 {[%clk 0:00:15.3]} 33. Rd4 {[%clk
0:00:09.8]} 33... Qc2 {[%clk 0:00:13.2]} 34. Rf4 {[%clk 0:00:10.3]} 34... Ng6
{[%clk 0:00:12.5]} 35. Rd4 {[%clk 0:00:10.2]} 35... Ne7 {[%clk 0:00:09.4]} 36.
h4 {[%clk 0:00:11]} 36... Nc6 {[%clk 0:00:07.5]} 37. Rf4 {[%clk 0:00:11.3]}
37... Rc8 {[%clk 0:00:06.3]} 38. Nd4 {[%clk 0:00:11.7]} 38... Qd3 {[%clk
0:00:06.4]} 39. Nxc6 {[%clk 0:00:09.5]} 39... Rxc6 {[%clk 0:00:06.1]} 40. Qd4
{[%clk 0:00:09.1]} 40... Qxd4 {[%clk 0:00:07]} 41. Rxd4 {[%clk 0:00:11]} 41...
Rc8 {[%clk 0:00:07.1]} 42. f4 {[%clk 0:00:10.8]} 42... f6 {[%clk 0:00:08.5]} 43.
exf6 {[%clk 0:00:11]} 43... gxf6 {[%clk 0:00:10.4]} 44. f5 {[%clk 0:00:12.9]}
44... Kf7 {[%clk 0:00:10.8]} 45. fxe6+ {[%clk 0:00:14.2]} 45... Kxe6 {[%clk
0:00:12.7]} 46. Kf3 {[%clk 0:00:16.1]} 46... Ke5 {[%clk 0:00:12.6]} 47. Rd2
{[%clk 0:00:17.2]} 47... h5 {[%clk 0:00:13.4]} 48. Re2+ {[%clk 0:00:17.2]} 48...
Kd6 {[%clk 0:00:12.9]} 49. gxh5 {[%clk 0:00:18.8]} 49... d4 {[%clk 0:00:14]} 50.
cxd4 {[%clk 0:00:20.7]} 50... Kd5 {[%clk 0:00:15.1]} 51. Kg4 {[%clk 0:00:20.9]}
51... c3 {[%clk 0:00:14]} 52. Re1 {[%clk 0:00:20.8]} 52... c2 {[%clk 0:00:14.1]}
53. Rc1 {[%clk 0:00:20.3]} 53... Kxd4 {[%clk 0:00:10.2]} 54. Kf5 {[%clk
0:00:20.4]} 54... Kd3 {[%clk 0:00:10.6]} 55. h6 {[%clk 0:00:19.5]} 55... Rc4
{[%clk 0:00:10.8]} 56. h5 {[%clk 0:00:16.8]} 56... Rxb4 {[%clk 0:00:11.6]} 57.
h7 {[%clk 0:00:18]} 57... Rb8 {[%clk 0:00:12.2]} 58. Kxf6 {[%clk 0:00:16.6]}
58... Kd2 {[%clk 0:00:12]} 59. Rh1 {[%clk 0:00:17.6]} 59... c1=Q {[%clk
0:00:11.7]} 60. Rxc1 {[%clk 0:00:18.8]} 60... Kxc1 {[%clk 0:00:13.6]} 61. Kg7
{[%clk 0:00:20.7]} 61... Rb7+ {[%clk 0:00:14.7]} 62. Kg8 {[%clk 0:00:22.3]}
62... Rb8+ {[%clk 0:00:15.8]} 63. Kg7 {[%clk 0:00:23.8]} 63... Rb7+ {[%clk
0:00:17.3]} 64. Kg6 {[%clk 0:00:25.3]} 64... Rb8 {[%clk 0:00:17.8]} 65. Kg7
{[%clk 0:00:13.4]} 65... Rb7+ {[%clk 0:00:17.7]} 1/2-1/2

[Event "*** Titled Tuesday Blitz"]
[Site "Chess.com"]
[Date "2019.03.05"]
[Round "9"]
[White "Jbd735"]
[Black "StanislavNovikov"]
[Result "0-1"]
[WhiteElo "2457"]
[BlackElo "2635"]
[TimeControl "180+2"]
[EndTime "15:15:37 PST"]
[Termination "StanislavNovikov won by resignation"]

1. d4 {[%clk 0:03:01.9]} 1... g6 {[%clk 0:03:00.8]} 2. e4 {[%clk 0:03:00.5]}
2... Bg7 {[%clk 0:03:01.8]} 3. Nc3 {[%clk 0:02:54.9]} 3... c6 {[%clk 0:03:02.4]}
4. Be3 {[%clk 0:02:53.4]} 4... b5 {[%clk 0:03:02.9]} 5. Qd2 {[%clk 0:02:49.1]}
5... d6 {[%clk 0:03:03.2]} 6. h4 {[%clk 0:02:46.5]} 6... h6 {[%clk 0:02:59.5]}
7. h5 {[%clk 0:02:33.3]} 7... g5 {[%clk 0:02:59.6]} 8. O-O-O {[%clk 0:02:25.5]}
8... Nd7 {[%clk 0:02:58.2]} 9. f4 {[%clk 0:02:18]} 9... gxf4 {[%clk 0:02:56.9]}
10. Bxf4 {[%clk 0:02:19.9]} 10... b4 {[%clk 0:02:51.2]} 11. Nce2 {[%clk
0:02:11.5]} 11... Qa5 {[%clk 0:02:51.1]} 12. Kb1 {[%clk 0:02:10.5]} 12... Nb6
{[%clk 0:02:49.7]} 13. Nc1 {[%clk 0:02:11]} 13... Nf6 {[%clk 0:02:45.2]} 14. Bd3
{[%clk 0:02:06.2]} 14... Be6 {[%clk 0:02:29.8]} 15. Nf3 {[%clk 0:02:03.4]} 15...
Rb8 {[%clk 0:02:23]} 16. Nb3 {[%clk 0:01:45]} 16... Qa4 {[%clk 0:02:15.4]} 17.
d5 {[%clk 0:01:26.1]} 17... cxd5 {[%clk 0:02:07.1]} 18. e5 {[%clk 0:00:54.3]}
18... dxe5 {[%clk 0:01:37.3]} 19. Bxe5 {[%clk 0:00:56.2]} 19... Rc8 {[%clk
0:01:26.4]} 20. Nfd4 {[%clk 0:00:43.3]} 20... Bd7 {[%clk 0:01:20.9]} 21. Nf5
{[%clk 0:00:35]} 21... Bxf5 {[%clk 0:01:14]} 22. Bxf5 {[%clk 0:00:36.9]} 22...
e6 {[%clk 0:01:09.9]} 23. Bd3 {[%clk 0:00:35.2]} 23... Nc4 {[%clk 0:00:58.6]}
24. Bxc4 {[%clk 0:00:31.3]} 24... Rxc4 {[%clk 0:01:00.5]} 25. Qd3 {[%clk
0:00:22.9]} 25... O-O {[%clk 0:00:54.5]} 26. Rh3 {[%clk 0:00:17.9]} 26... Ng4
{[%clk 0:00:33]} 27. Bxg7 {[%clk 0:00:16.9]} 27... Kxg7 {[%clk 0:00:34.9]} 28.
Rg3 {[%clk 0:00:16]} 28... f5 {[%clk 0:00:35.3]} 29. Nd4 {[%clk 0:00:15.6]}
29... Qd7 {[%clk 0:00:31.6]} 30. Rxg4+ {[%clk 0:00:10.7]} 30... fxg4 {[%clk
0:00:28.4]} 31. Qg6+ {[%clk 0:00:12.6]} 31... Kh8 {[%clk 0:00:29.5]} 32. Qxh6+
{[%clk 0:00:14.1]} 32... Kg8 {[%clk 0:00:29.8]} 33. Qg6+ {[%clk 0:00:12.3]}
33... Qg7 {[%clk 0:00:29.8]} 34. Qxg7+ {[%clk 0:00:12.7]} 34... Kxg7 {[%clk
0:00:30.6]} 35. Nxe6+ {[%clk 0:00:14.5]} 35... Kf7 {[%clk 0:00:31.3]} 36. Nxf8
{[%clk 0:00:16.4]} 36... Kxf8 {[%clk 0:00:32.6]} 37. Rxd5 {[%clk 0:00:16.8]}
37... Rf4 {[%clk 0:00:31.2]} 38. b3 {[%clk 0:00:15]} 38... Rf2 {[%clk
0:00:30.3]} 39. g3 {[%clk 0:00:14.5]} 39... Rg2 {[%clk 0:00:28.6]} 40. Rd3
{[%clk 0:00:09]} 40... Kg7 {[%clk 0:00:29.5]} 41. Kb2 {[%clk 0:00:08.6]} 41...
Kh6 {[%clk 0:00:29.6]} 42. Rd4 {[%clk 0:00:05.3]} 42... Rxg3 {[%clk 0:00:28.4]}
43. Rxb4 {[%clk 0:00:06.1]} 43... Kxh5 {[%clk 0:00:29.9]} 44. Ra4 {[%clk
0:00:07.3]} 44... Rf3 {[%clk 0:00:25.1]} 45. Rxa7 {[%clk 0:00:09.2]} 45... Rf6
{[%clk 0:00:25.3]} 46. Rh7+ {[%clk 0:00:06.6]} 46... Rh6 {[%clk 0:00:25.1]} 47.
Rg7 {[%clk 0:00:07.4]} 47... Rg6 {[%clk 0:00:25.9]} 48. Rh7+ {[%clk 0:00:07.9]}
48... Rh6 {[%clk 0:00:26.6]} 49. Re7 {[%clk 0:00:08.5]} 49... g3 {[%clk
0:00:27.1]} 50. Re1 {[%clk 0:00:08]} 50... Kg4 {[%clk 0:00:26.8]} 51. a4 {[%clk
0:00:08.6]} 51... g2 {[%clk 0:00:27.9]} 52. b4 {[%clk 0:00:09.2]} 52... Rh1
{[%clk 0:00:28]} 53. Re8 {[%clk 0:00:09.9]} 53... g1=Q {[%clk 0:00:24.5]} 54.
Rg8+ {[%clk 0:00:10.4]} 54... Kf5 {[%clk 0:00:25.9]} 55. Rxg1 {[%clk 0:00:11.2]}
55... Rxg1 {[%clk 0:00:27.8]} 56. Kb3 {[%clk 0:00:11.5]} 56... Ke6 {[%clk
0:00:28.4]} 57. Kc4 {[%clk 0:00:11.7]} 57... Kd6 {[%clk 0:00:28.6]} 58. Kb5
{[%clk 0:00:11.5]} 58... Kc7 {[%clk 0:00:25.3]} 59. c4 {[%clk 0:00:11.6]} 59...
Rg4 {[%clk 0:00:22.7]} 60. c5 {[%clk 0:00:12.4]} 60... Kb7 {[%clk 0:00:22.4]}
61. a5 {[%clk 0:00:10.5]} 61... Rf4 {[%clk 0:00:18.3]} 62. a6+ {[%clk
0:00:10.6]} 62... Ka7 {[%clk 0:00:18.8]} 63. Ka5 {[%clk 0:00:10.8]} 63... Rc4
{[%clk 0:00:16.8]} 64. Kb5 {[%clk 0:00:10.6]} 64... Rc1 {[%clk 0:00:17.2]} 65.
Kc6 {[%clk 0:00:06.8]} 65... Kxa6 {[%clk 0:00:17.3]} 66. b5+ {[%clk 0:00:08.1]}
66... Ka7 {[%clk 0:00:18.2]} 67. b6+ {[%clk 0:00:07.8]} 67... Kb8 {[%clk
0:00:19]} 68. Kd6 {[%clk 0:00:02.5]} 68... Kb7 {[%clk 0:00:19.6]} 0-1

[Event "*** Titled Tuesday Blitz"]
[Site "Chess.com"]
[Date "2019.03.05"]
[Round "9"]
[White "kacprekt"]
[Black "VeraNebolsina"]
[Result "0-1"]
[WhiteElo "2269"]
[BlackElo "2338"]
[TimeControl "180+2"]
[EndTime "15:17:22 PST"]
[Termination "VeraNebolsina won on time"]

1. d4 {[%clk 0:03:01.9]} 1... Nf6 {[%clk 0:02:59.5]} 2. c4 {[%clk 0:02:54.7]}
2... g6 {[%clk 0:03:00]} 3. Nc3 {[%clk 0:02:55.7]} 3... d5 {[%clk 0:03:00.5]} 4.
Nf3 {[%clk 0:02:53.3]} 4... Bg7 {[%clk 0:03:01.1]} 5. h4 {[%clk 0:02:54.5]} 5...
c6 {[%clk 0:03:00.5]} 6. cxd5 {[%clk 0:02:55.3]} 6... cxd5 {[%clk 0:03:01]} 7.
Bf4 {[%clk 0:02:56.9]} 7... Nc6 {[%clk 0:02:48.1]} 8. e3 {[%clk 0:02:57.8]} 8...
Qb6 {[%clk 0:02:43.4]} 9. Qb3 {[%clk 0:02:54.6]} 9... Qb4 {[%clk 0:02:19.7]} 10.
Bb5 {[%clk 0:02:42.2]} 10... Qxb3 {[%clk 0:01:35.1]} 11. axb3 {[%clk 0:02:44.1]}
11... Bd7 {[%clk 0:01:36.2]} 12. Bxc6 {[%clk 0:02:32.6]} 12... Bxc6 {[%clk
0:01:35.4]} 13. Ne5 {[%clk 0:02:33.2]} 13... Nd7 {[%clk 0:01:33]} 14. Nxc6
{[%clk 0:02:32.7]} 14... bxc6 {[%clk 0:01:33.1]} 15. Na4 {[%clk 0:02:33.5]}
15... e5 {[%clk 0:01:29.5]} 16. dxe5 {[%clk 0:02:34.8]} 16... Nxe5 {[%clk
0:01:26.1]} 17. Nc5 {[%clk 0:02:33.6]} 17... Ke7 {[%clk 0:01:23]} 18. Kd2 {[%clk
0:02:32.7]} 18... Rhb8 {[%clk 0:01:12.9]} 19. Ra6 {[%clk 0:02:25.2]} 19... Rb5
{[%clk 0:00:49.2]} 20. Rc1 {[%clk 0:02:22.4]} 20... Nc4+ {[%clk 0:00:33.4]} 21.
bxc4 {[%clk 0:02:12.5]} 21... Rxc5 {[%clk 0:00:34.7]} 22. b4 {[%clk 0:01:57.9]}
22... Rxc4 {[%clk 0:00:35.7]} 23. Rxc4 {[%clk 0:01:58.8]} 23... dxc4 {[%clk
0:00:36.8]} 24. Rxc6 {[%clk 0:02:00.3]} 24... c3+ {[%clk 0:00:38.1]} 25. Kc2
{[%clk 0:01:59]} 25... Rd8 {[%clk 0:00:38.5]} 26. Bg5+ {[%clk 0:01:56.4]} 26...
f6 {[%clk 0:00:37]} 27. Bf4 {[%clk 0:01:43]} 27... f5 {[%clk 0:00:26]} 28. Bg5+
{[%clk 0:01:42.6]} 28... Kd7 {[%clk 0:00:27.3]} 29. b5 {[%clk 0:01:31.8]} 29...
Rb8 {[%clk 0:00:26.7]} 30. Bf4 {[%clk 0:01:32]} 30... Rb7 {[%clk 0:00:23.7]} 31.
Rc5 {[%clk 0:01:26.6]} 31... Bf8 {[%clk 0:00:18.5]} 32. Rd5+ {[%clk 0:01:23.4]}
32... Ke6 {[%clk 0:00:19]} 33. Re5+ {[%clk 0:01:24.6]} 33... Kf6 {[%clk
0:00:19.3]} 34. Kxc3 {[%clk 0:01:24.4]} 34... Bd6 {[%clk 0:00:17.3]} 35. Rd5
{[%clk 0:01:25.6]} 35... Rc7+ {[%clk 0:00:16.5]} 36. Kb3 {[%clk 0:01:25.3]}
36... Bxf4 {[%clk 0:00:17]} 37. exf4 {[%clk 0:01:27.2]} 37... Ke6 {[%clk
0:00:17.6]} 38. Re5+ {[%clk 0:01:26.6]} 38... Kd6 {[%clk 0:00:18.9]} 39. g3
{[%clk 0:01:27]} 39... Rc1 {[%clk 0:00:19.3]} 40. Kb4 {[%clk 0:01:26.5]} 40...
Rb1+ {[%clk 0:00:19.7]} 41. Kc4 {[%clk 0:01:27.9]} 41... Rc1+ {[%clk 0:00:20.9]}
42. Kd3 {[%clk 0:01:29.1]} 42... Rd1+ {[%clk 0:00:21.7]} 43. Ke2 {[%clk
0:01:30.2]} 43... Rb1 {[%clk 0:00:22.6]} 44. Kf3 {[%clk 0:01:30.4]} 44... Rb3+
{[%clk 0:00:23.7]} 45. Kg2 {[%clk 0:01:31.7]} 45... Rb2 {[%clk 0:00:24.9]} 46.
h5 {[%clk 0:01:32.8]} 46... Rb3 {[%clk 0:00:25.3]} 47. Kh3 {[%clk 0:01:33.5]}
47... Rb2 {[%clk 0:00:25.8]} 48. Kg2 {[%clk 0:01:33.3]} 48... Rb3 {[%clk
0:00:26.7]} 49. h6 {[%clk 0:01:23.2]} 49... Rb2 {[%clk 0:00:26.8]} 50. Re8
{[%clk 0:01:03.3]} 50... Rxb5 {[%clk 0:00:27]} 51. Rg8 {[%clk 0:01:01.8]} 51...
Rb7 {[%clk 0:00:27.8]} 52. Rg7 {[%clk 0:01:02.7]} 52... Kc6 {[%clk 0:00:29.1]}
53. Kf3 {[%clk 0:01:02.4]} 53... a5 {[%clk 0:00:29.9]} 54. Ke3 {[%clk
0:01:00.4]} 54... a4 {[%clk 0:00:31.1]} 55. Kd2 {[%clk 0:01:00.7]} 55... a3
{[%clk 0:00:31.2]} 56. Rxb7 {[%clk 0:00:54.5]} 56... Kxb7 {[%clk 0:00:31.9]} 57.
Kc3 {[%clk 0:00:55.6]} 57... Kc6 {[%clk 0:00:33]} 58. Kb3 {[%clk 0:00:57]} 58...
Kd5 {[%clk 0:00:33.9]} 59. Kxa3 {[%clk 0:00:31.5]} 59... Ke4 {[%clk 0:00:34.6]}
60. Kb4 {[%clk 0:00:32.7]} 60... Kf3 {[%clk 0:00:35.5]} 61. Kc5 {[%clk
0:00:33.1]} 61... Kxf2 {[%clk 0:00:36.7]} 62. Kd6 {[%clk 0:00:34.2]} 62... Kxg3
{[%clk 0:00:37.9]} 63. Ke5 {[%clk 0:00:35.1]} 63... Kg4 {[%clk 0:00:37.4]} 64.
Kf6 {[%clk 0:00:35.4]} 64... Kxf4 {[%clk 0:00:34.5]} 65. Kg7 {[%clk 0:00:36.3]}
65... g5 {[%clk 0:00:35.5]} 66. Kxh7 {[%clk 0:00:37.2]} 66... g4 {[%clk
0:00:36.7]} 67. Kg6 {[%clk 0:00:35.8]} 67... g3 {[%clk 0:00:37.5]} 68. h7 {[%clk
0:00:37.1]} 68... g2 {[%clk 0:00:38.6]} 69. h8=Q {[%clk 0:00:38.3]} 69... g1=Q+
{[%clk 0:00:39.5]} 70. Kf7 {[%clk 0:00:39.3]} 70... Qa7+ {[%clk 0:00:39]} 71.
Ke6 {[%clk 0:00:39.3]} 71... Qb6+ {[%clk 0:00:36.5]} 72. Kd5 {[%clk 0:00:38.2]}
72... Qb5+ {[%clk 0:00:37.6]} 73. Kd6 {[%clk 0:00:37.1]} 73... Qb4+ {[%clk
0:00:36.4]} 74. Kd5 {[%clk 0:00:37]} 74... Qd2+ {[%clk 0:00:36.2]} 75. Kc4
{[%clk 0:00:32.7]} 75... Qc2+ {[%clk 0:00:35.7]} 76. Kd5 {[%clk 0:00:31.6]}
76... Qe4+ {[%clk 0:00:34.9]} 77. Kd6 {[%clk 0:00:31.6]} 77... Ke3 {[%clk
0:00:29]} 78. Qh3+ {[%clk 0:00:29.1]} 78... Qf3 {[%clk 0:00:29.2]} 79. Qh8
{[%clk 0:00:21.8]} 79... f4 {[%clk 0:00:28.2]} 80. Qc3+ {[%clk 0:00:19.2]} 80...
Kf2 {[%clk 0:00:28.9]} 81. Qd2+ {[%clk 0:00:19.6]} 81... Kg3 {[%clk 0:00:28.3]}
82. Qe1+ {[%clk 0:00:10.4]} 82... Qf2 {[%clk 0:00:29.2]} 83. Qe5 {[%clk
0:00:10.7]} 83... Qd2+ {[%clk 0:00:27.9]} 84. Kc6 {[%clk 0:00:10.3]} 84... Qe3
{[%clk 0:00:27.8]} 85. Qg5+ {[%clk 0:00:10.6]} 85... Kf2 {[%clk 0:00:28.3]} 86.
Qh4+ {[%clk 0:00:06.4]} 86... Ke2 {[%clk 0:00:25.6]} 87. Qh2+ {[%clk 0:00:05.5]}
87... Qf2 {[%clk 0:00:24.9]} 88. Qh8 {[%clk 0:00:03.1]} 88... f3 {[%clk
0:00:25.6]} 89. Qb2+ {[%clk 0:00:03.6]} 89... Kf1 {[%clk 0:00:26.4]} 90. Qc1+
{[%clk 0:00:04.1]} 90... Qe1 {[%clk 0:00:24.5]} 91. Qc4+ {[%clk 0:00:04.8]}
91... Qe2 {[%clk 0:00:24.9]} 0-1

[Event "*** Titled Tuesday Blitz"]
[Site "Chess.com"]
[Date "2019.03.05"]
[Round "10"]
[White "MatBobula"]
[Black "payto1"]
[Result "1-0"]
[WhiteElo "2257"]
[BlackElo "2125"]
[TimeControl "180+2"]
[EndTime "15:24:44 PST"]
[Termination "MatBobula won on time"]

1. d4 {[%clk 0:03:01.9]} 1... Nf6 {[%clk 0:00:40.5]} 2. c4 {[%clk 0:03:01.2]}
2... e6 {[%clk 0:00:34.6]} 3. Nf3 {[%clk 0:03:01.9]} 3... b6 {[%clk 0:00:19.6]}
4. g3 {[%clk 0:03:02.8]} 4... Bb7 {[%clk 0:00:21.1]} 5. Bg2 {[%clk 0:03:03.9]}
5... Be7 {[%clk 0:00:22.8]} 6. O-O {[%clk 0:03:04.9]} 6... O-O {[%clk
0:00:24.5]} 7. Nc3 {[%clk 0:03:05.5]} 7... Ne4 {[%clk 0:00:20.9]} 8. Nxe4 {[%clk
0:03:06.4]} 8... Bxe4 {[%clk 0:00:22.8]} 9. Ne1 {[%clk 0:03:08]} 9... Bxg2
{[%clk 0:00:23.7]} 10. Nxg2 {[%clk 0:03:09.9]} 10... d5 {[%clk 0:00:25.2]} 11.
Qa4 {[%clk 0:03:06.3]} 1-0

[Event "*** Titled Tuesday Blitz"]
[Site "Chess.com"]
[Date "2019.03.05"]
[Round "10"]
[White "SimonKnightRivendell"]
[Black "Vadim_Biliy"]
[Result "1-0"]
[WhiteElo "2001"]
[BlackElo "2120"]
[TimeControl "180+2"]
[EndTime "15:25:01 PST"]
[Termination "SimonKnightRivendell won by resignation"]

1. d4 {[%clk 0:03:01.9]} 1... d5 {[%clk 0:02:59.2]} 2. c4 {[%clk 0:03:02.7]}
2... e6 {[%clk 0:02:58.8]} 3. Nf3 {[%clk 0:03:03.5]} 3... Nf6 {[%clk 0:02:59.3]}
4. g3 {[%clk 0:03:04.4]} 4... Be7 {[%clk 0:02:59.9]} 5. Bg2 {[%clk 0:03:05.4]}
5... O-O {[%clk 0:03:01.3]} 6. O-O {[%clk 0:03:06.2]} 6... dxc4 {[%clk
0:03:02.2]} 7. Qc2 {[%clk 0:03:06.1]} 7... Qd6 {[%clk 0:03:02.5]} 8. Na3 {[%clk
0:02:57.9]} 8... Qa6 {[%clk 0:02:51.8]} 9. Nxc4 {[%clk 0:02:56.3]} 9... Nc6
{[%clk 0:02:49.8]} 10. a3 {[%clk 0:02:52]} 10... Rd8 {[%clk 0:02:48.8]} 11. Rd1
{[%clk 0:02:49.7]} 11... Rb8 {[%clk 0:02:45.1]} 12. b4 {[%clk 0:02:42.8]} 12...
b5 {[%clk 0:02:37.2]} 13. Nce5 {[%clk 0:02:43.3]} 13... Bb7 {[%clk 0:02:31.1]}
14. Bg5 {[%clk 0:02:27.7]} 14... Nxe5 {[%clk 0:02:07]} 15. dxe5 {[%clk
0:02:26.3]} 15... Be4 {[%clk 0:01:45.8]} 16. Qxc7 {[%clk 0:02:18]} 16... Nd5
{[%clk 0:01:28]} 17. Rxd5 {[%clk 0:02:18.6]} 17... Bxg5 {[%clk 0:01:27]} 18.
Rxd8+ {[%clk 0:02:13.3]} 18... Rxd8 {[%clk 0:01:23.1]} 19. Nxg5 {[%clk 0:02:14]}
1-0